Cogmind - Beta 14 @@@ ROGUE MODE // 2024.08.08 @ 20:37:21 Player: APerTAS Result: Destroyed by Heavy Explosive Trap Performance ------------- Evolutions (3) 1500 Regions Visited (5) 1000 Robots Destroyed (1) 5 Value Destroyed (40) 40 Prototype IDs (0) 0 Alien Tech Used (0) 0 Bonus (200) 200 TOTAL SCORE: 2745 Bonus ------- Pacifist 200 Cogmind --------- Core Integrity 0/700 Matter 232/300 Energy 98/100 System Corruption 2% Temperature Cool (0) Movement Core (50) Location -7/Storage Parts ------- > --- POWER (7) -------- (None) > --- PROPULSION (2) --- (None) > --- UTILITY (2) ------ (None) > --- WEAPON (2) ------- (None) > --- INVENTORY (5) ---- (None) Peak State ------------ > --- POWER ------------ (None) > --- PROPULSION ------- (None) > --- UTILITY ---------- Improved Medium Armor Plating Improved Medium Armor Plating > --- WEAPON ----------- (None) > --- INVENTORY -------- (None) [Rating: 8] Favorites ----------- Power None Propulsion None Utility Improved Sensor Array Device Improved Sensor Array Protection Improved Medium Armor Plating Weapon None Build | -11 -10 -9 -8 -7 -7 ------- Run | Yrd Mat Mat Mat Fac Sto Slots Evolved 6 | . . 2 2 2 . Power 6 | . . 2 2 2 . Propulsion . | . . . . . . Utility . | . . . . . . Weapon . | . . . . . . Parts Attached 3 | . . . . 1 2 Power . | . . . . . . Engine . | . . . . . . Core . | . . . . . . Reactor . | . . . . . . Propulsion . | . . . . . . Treads . | . . . . . . Leg . | . . . . . . Wheel . | . . . . . . Hover . | . . . . . . Flight . | . . . . . . Utility 3 | . . . . 1 2 Device 1 | . . . . 1 . Storage . | . . . . . . Processor . | . . . . . . Hackware . | . . . . . . Protection 2 | . . . . . 2 Artifact . | . . . . . . Weapon . | . . . . . . Energy Gun . | . . . . . . Energy Cannon . | . . . . . . Ballistic Gun . | . . . . . . Ballistic Cannon . | . . . . . . Launcher . | . . . . . . Special Weapon . | . . . . . . Impact Weapon . | . . . . . . Slashing Weapon . | . . . . . . Piercing Weapon . | . . . . . . Special Melee Weapon . | . . . . . . Unidentified Prototypes . | . . . . . . Parts Lost 1 | . . . . . 1 Power . | . . . . . . Propulsion . | . . . . . . Utility 1 | . . . . . 1 Weapon . | . . . . . . Highest Loss Streak 1 | . . . . . 1 To Critical Strikes . | . . . . . . Average Slot Usage (%) 3 | . . . . 5 7 Device 3 | . . . . 5 2 Peak Build Rating 8 | . . . . 3 8 Average Rating 1 | . . . . 2 3 On Entrance . | . . . . . 3 Naked Turns 219 | . 28 52 92 33 14 Heaviest Build 14 | . . . . 1 14 Greatest Support 3 | 3 3 3 3 3 3 Greatest Overweight (x) 4 | . . . . . 4 Average Overweight (x) . | . . . . . . Largest Inventory Capacity 5 | 5 5 5 5 5 5 Average Capacity 5 | 5 5 5 5 5 5 Most Carried . | . . . . . . Average Carried . | . . . . . . Final Capacity 5 | 5 5 5 5 5 5 Final Carried . | . . . . . . Class Distribution -------------------- 100% | Mutant Dominant Class ---------------- Mutant | -10/Materials Mutant | -9/Materials Mutant | -8/Materials Mutant | -7/Factory Mutant | -7/Storage Resources | -11 -10 -9 -8 -7 -7 ----------- Run | Yrd Mat Mat Mat Fac Sto Matter Collected 88 | 68 . 20 . . . Remotely . | . . . . . . Salvage Created 20 | . . 20 . . . Parts 4 | . . 4 . . . Haulers Intercepted . | . . . . . . Recyclers Shooed . | . . . . . . Parts Field Recycled . | . . . . . . Retrieved Matter . | . . . . . . Parts Self-Destructed . | . . . . . . Prevented . | . . . . . . Kills | -11 -10 -9 -8 -7 -7 ------- Run | Yrd Mat Mat Mat Fac Sto Combat Hostiles Destroyed 1 | . . 1 . . . Melee 1 | . . 1 . . . Classes Destroyed 1 | . . 1 . . . Swarmer 1 | . . 1 . . . Best Kill Streak 1 | . . 1 . . . Combat Bots Only 1 | . . 1 . . . Max Kills in Single Turn 1 | . . 1 . . . Gunslinging . | . . . . . . Exploded . | . . . . . . Melee 1 | . . 1 . . . Uniques/NPCs Destroyed . | . . . . . . Combat | -11 -10 -9 -8 -7 -7 -------- Run | Yrd Mat Mat Mat Fac Sto Hostile Shots Fired 229 | . 7 32 40 55 95 Missed 84 | . 4 9 10 21 40 Damage Taken 1752 | 7 33 231 415 373 693 Core 1426 | 7 33 231 415 365 375 Absorbed by Shields . | . . . . . . Core Remaining (%) 61 | 97 84 42 24 . . Volleys Fired . | . . . . . . Largest . | . . . . . . Hottest . | . . . . . . Shots Fired . | . . . . . . Gun . | . . . . . . Cannon . | . . . . . . Launcher . | . . . . . . Special . | . . . . . . Kinetic . | . . . . . . Thermal . | . . . . . . Explosive . | . . . . . . Electromagnetic . | . . . . . . Robot Hit Streak . | . . . . . . Robot Miss Streak . | . . . . . . Penetration Max . | . . . . . . Secondary Targets . | . . . . . . Shots Hit Robots . | . . . . . . Core Hits 5 | 1 . 1 . 1 2 Critical Kills . | . . . . . . Critical Parts Destroyed . | . . . . . . Critical Strikes . | . . . . . . Melee Attacks . | . . . . . . Impact . | . . . . . . Slashing . | . . . . . . Piercing . | . . . . . . Sneak Attacks . | . . . . . . Combat Hostiles . | . . . . . . Follow-up Attacks . | . . . . . . Damage Inflicted 254 | 15 . 17 47 170 5 Guns . | . . . . . . Cannons . | . . . . . . Explosions 152 | . . . . 152 . Melee . | . . . . . . Ramming 102 | 15 . 17 47 18 5 Kinetic . | . . . . . . Thermal 152 | . . . . 152 . Explosive . | . . . . . . Electromagnetic . | . . . . . . Impact . | . . . . . . Slashing . | . . . . . . Piercing . | . . . . . . Highest Corruption 2 | . . 1 . 2 2 Average Corruption 1 | . . 1 . 1 2 Corruption Purged . | . . . . . . Corruption Blocked . | . . . . . . Effects 1 | . . . . . 1 Data Loss (major) 1 | . . . . . 1 Overload Shots . | . . . . . . Overflow Damage 59 | . . . . 59 . Projectiles . | . . . . . . Explosions 59 | . . . . 59 . Melee . | . . . . . . Knockbacks . | . . . . . . Impact . | . . . . . . Kinetic . | . . . . . . Secondary . | . . . . . . Self-Inflicted Damage 48 | 7 . 8 22 9 2 Shots . | . . . . . . Rammed 22 | 3 . 1 10 5 3 Targets Rammed 22 | 3 . 1 10 5 3 Kicked . | . . . . . . Crushed . | . . . . . . Highest Temperature . | . . . . . . Average Temperature . | . . . . . . Received Heat Transfer 483 | . 18 27 135 120 183 Siege Activations . | . . . . . . Robots Corrupted . | . . . . . . Combat Hostiles . | . . . . . . Parts Fried . | . . . . . . Impact Corruptions . | . . . . . . Robots Melted . | . . . . . . Combat Hostiles . | . . . . . . Parts Melted . | . . . . . . Heat Transferred 100 | . . . . 100 . Parts Sabotaged . | . . . . . . Parts Stolen . | . . . . . . Parts Stripped . | . . . . . . Power Chain Reactions . | . . . . . . Alert | -11 -10 -9 -8 -7 -7 ------- Run | Yrd Mat Mat Mat Fac Sto Peak Influence 294 | . 15 110 126 294 170 Initial 133 | . . 5 46 56 133 Average 92 | . 4 33 72 112 154 Maximum Alert Level 1 | . . . . 1 . Low Security (%) 93 | 100 100 100 100 85 100 Level 1 6 | . . . . 14 . Level 2 . | . . . . . . Level 3 . | . . . . . . Level 4 . | . . . . . . Level 5 . | . . . . . . High Security . | . . . . . . Max Security . | . . . . . . Squads Dispatched 8 | . . . 4 2 2 Investigation 8 | . . . 4 2 2 Extermination . | . . . . . . Reinforcement . | . . . . . . Assault . | . . . . . . Garrison . | . . . . . . Intercept . | . . . . . . Searches Triggered . | . . . . . . Construction Impeded . | . . . . . . Haulers Reinforced . | . . . . . . Active Scanning Responses . | . . . . . . Cargo Convoy Interrupts . | . . . . . . Stealth | -11 -10 -9 -8 -7 -7 --------- Run | Yrd Mat Mat Mat Fac Sto Distress Signals . | . . . . . . Communications Jammed . | . . . . . . Distress Signals . | . . . . . . Times Spotted 38 | . 5 8 11 9 5 Peak Tracking Total 10 | . 5 7 10 7 5 Tactical Retreats 5 | . . 1 1 3 . Traps | -11 -10 -9 -8 -7 -7 ------- Run | Yrd Mat Mat Mat Fac Sto Traps Triggered 2 | . . 1 . . 1 Indirectly . | . . . . . . Trap Hack Attempts . | . . . . . . Triggered . | . . . . . . Disarmed . | . . . . . . Reprogrammed . | . . . . . . Reused . | . . . . . . Traps Extracted . | . . . . . . Installed . | . . . . . . Triggered . | . . . . . . Objects Rigged 3 | . . . . 3 . Exploded 1 | . . . . 1 . Machines | -11 -10 -9 -8 -7 -7 ---------- Run | Yrd Mat Mat Mat Fac Sto Machines Disabled 3 | . . . . 3 . Max in Single Turn 3 | . . . . 3 . Machines Repaired . | . . . . . . Machines Dismantled . | . . . . . . Machines Sabotaged . | . . . . . . Overloaded Fab Kills . | . . . . . . Hacking | -11 -10 -9 -8 -7 -7 --------- Run | Yrd Mat Mat Mat Fac Sto Machines Accessed 10 | . . . 4 2 4 Terminals 10 | . . . 4 2 4 Fabricators . | . . . . . . Repair Stations . | . . . . . . Recycling Units . | . . . . . . Scanalyzers . | . . . . . . Garrison Access . | . . . . . . Total Hacks 31 | . . . 17 6 8 Successful 9 | . . . 3 3 3 Failed 22 | . . . 14 3 5 Catastrophic 4 | . . . 3 1 . Database Lockouts . | . . . . . . Manual 27 | . . . 17 4 6 Terminals 31 | . . . 17 6 8 Fabricators . | . . . . . . Repair Stations . | . . . . . . Recycling Units . | . . . . . . Scanalyzers . | . . . . . . Garrison Access . | . . . . . . Terminal Hacks 4 | . . . . 2 2 Record 1 | . . . . 1 . Open Door 2 | . . . . . 2 Branch Access Points 1 | . . . . 1 . Fabricator Hacks . | . . . . . . Repair Station Hacks . | . . . . . . Recycling Unit Hacks . | . . . . . . Scanalyzer . | . . . . . . Garrison Access Hacks . | . . . . . . Unauthorized Hacks 5 | . . . 3 1 1 Terminals 5 | . . . 3 1 1 Botnet 4 | . . . 3 . 1 Detonate 1 | . . . . 1 . Fabricators . | . . . . . . Repair Stations . | . . . . . . Recycling Units . | . . . . . . Scanalyzers . | . . . . . . Garrison Access . | . . . . . . Data Cores Recovered . | . . . . . . Used . | . . . . . . Hacking Detections 9 | . . . 4 2 3 Full Trace Events 8 | . . . 4 2 2 Feedback Events . | . . . . . . Feedback Blocked . | . . . . . . Robot Schematics Acquired . | . . . . . . Robots Built . | . . . . . . Authchips . | . . . . . . Time . | . . . . . . Total Robot Build Rating . | . . . . . . Part Schematics Acquired . | . . . . . . Parts Built . | . . . . . . Authchips . | . . . . . . Time . | . . . . . . Total Part Build Rating . | . . . . . . Parts Repaired . | . . . . . . Time . | . . . . . . Parts Recycled . | . . . . . . Recycled Matter . | . . . . . . Retrieved Matter . | . . . . . . Retrieved Components . | . . . . . . Parts Scanalyzed . | . . . . . . Part Schematics Acquired . | . . . . . . Parts Damaged . | . . . . . . Bothacking | -11 -10 -9 -8 -7 -7 ------------ Run | Yrd Mat Mat Mat Fac Sto Used RIF Installer . | . . . . . . Robots Hacked . | . . . . . . Non-combat . | . . . . . . Combat . | . . . . . . Robot Hacks Applied . | . . . . . . Relay Couplers Released . | . . . . . . Fabnet Peak Effective % . | . . . . . . Robots Rewired . | . . . . . . Allies Hacked . | . . . . . . Hacks Repelled . | . . . . . . Allies | -11 -10 -9 -8 -7 -7 -------- Run | Yrd Mat Mat Mat Fac Sto Total Allies . | . . . . . . Largest Group . | . . . . . . Highest-Rated Group . | . . . . . . Highest-Rated Ally . | . . . . . . Total Orders . | . . . . . . Ally Attacks . | . . . . . . Total Damage . | . . . . . . Kills . | . . . . . . Allies Corrupted . | . . . . . . Allies Melted . | . . . . . . Intel | -11 -10 -9 -8 -7 -7 ------- Run | Yrd Mat Mat Mat Fac Sto Robot Analysis Total . | . . . . . . Derelict Logs Recovered . | . . . . . . Drone Launches . | . . . . . . Drone Recoveries . | . . . . . . Exploration | -11 -10 -9 -8 -7 -7 ------------- Run | Yrd Mat Mat Mat Fac Sto Turns Passed 454 | 13 28 52 92 190 79 Spaces Moved 809 | 20 56 101 163 367 102 Core 809 | 20 56 101 163 367 102 Treads . | . . . . . . Legs . | . . . . . . Wheels . | . . . . . . Hover . | . . . . . . Flight . | . . . . . . Fastest Speed 50 | 50 50 50 50 50 50 Average Speed 52 | 50 50 50 50 50 68 Slowest Speed 250 | 50 50 50 50 50 250 Overloaded Moves . | . . . . . . Propulsion Burnouts . | . . . . . . Robots Hopped . | . . . . . . Cave-ins Triggered . | . . . . . . Exploration Rate (%) 13 | 2 17 12 17 16 16 Regions Visited 5 Branch Regions 1 Pre-discovered Areas . | . . . . . . Known Exits Taken 1 | . . . . 1 . Unknown Exits Taken 4 | 1 1 1 1 . . Scrap Searched . | . . . . . . Spaces Dug . | . . . . . . Terrain Destroyed 13 | . . . . 13 . Melee . | . . . . . . Projectile . | . . . . . . AOE 13 | . . . . 13 . Terrain Rammed . | . . . . . . Walls Destroyed . | . . . . . . Machines Disabled . | . . . . . . Actions | -11 -10 -9 -8 -7 -7 --------- Run | Yrd Mat Mat Mat Fac Sto Total 830 | 22 55 101 172 372 108 Wait . | . . . . . . Move 804 | 19 55 100 162 366 102 Hop . | . . . . . . Pick Up . | . . . . . . Fast Attach 3 | . . . . 1 2 Attach . | . . . . . . Detach . | . . . . . . Swap . | . . . . . . Drop 1 | . . . . . 1 Fire . | . . . . . . Melee . | . . . . . . Ram 22 | 3 . 1 10 5 3 Kick . | . . . . . . Crush . | . . . . . . Escape Stasis . | . . . . . . Rewire . | . . . . . . Trap . | . . . . . . Miscellaneous . | . . . . . . Route ------- -11/Scrapyard -10/Materials -9/Materials -8/Materials -7/Factory (discovered 4 exits: [*Fac] / *Sto / Low x2) -7/Storage History --------- Turn | Location | Event 2 | -11/Scrapyard | Discovered new exit (range 16) 14 | -11/Scrapyard | Entered Materials 40 | -10/Materials | Discovered new exit (range 5) 42 | -10/Materials | Entered another Materials area 42 | -9/Materials | Evolved 2 slots: Power x2 82 | -9/Materials | Core integrity fell below 50% 86 | -9/Materials | Discovered new exit (range 15) 94 | -9/Materials | Entered another Materials area 94 | -8/Materials | Evolved 2 slots: Power x2 169 | -8/Materials | Core integrity fell below 50% 183 | -8/Materials | Discovered new exit (range 5) 186 | -8/Materials | Entered Factory 186 | -7/Factory | Evolved 2 slots: Power x2 245 | -7/Factory | Identified exit to Storage 245 | -7/Factory | Identified exit to Lower Caves 282 | -7/Factory | Discovered new exit (range 15) 316 | -7/Factory | Build established: Mutant 361 | -7/Factory | Core integrity fell below 50% 376 | -7/Factory | Entered Storage 429 | -7/Storage | Core integrity fell below 20% 455 | -7/Storage | Destroyed by Heavy Explosive Trap Last Messages --------------- 00401_ ALERT: Suspicious activity at Terminal S004. Dispatching Investigation squad. 00406_ Connecting with Door Terminal... >>Open(Door) Sealed Heavy Doors opened. 00407_ Acquired Imp. Medium Armor Plating. 00409_ Dropped Imp. Sensor Array. 00410_ Acquired Imp. Medium Armor Plating. 00412_ System corrupted: Substantial component data lost. 00419_ Slammed into G-47 Trooper. 00420_ Imp. Medium Armor Plating severed. 00421_ Slammed into G-47 Trooper. 00423_ Slammed into Y-54 Guardian. 00424_ Critical hit (Burn: +37). 00430_ R-06 Scavenger collects Imp. Medium Armor Plating. 00438_ G-47 Trooper destroyed. 00441_ Imp. Medium Armor Plating destroyed. 00443_ R-06 Scavenger collects Particle Gun. 00455_ Triggered Heavy Explosive Trap. 00455_ An explosion rips through the floor. Map ----- +----------------------------------------------------+ | ?????????????????????????????????????????????????? | | ?????????????????????????????????????????????????? | | ?????????????????????????????????????????????????? | | ?????????????????????????????????????????????????? | | ?????????????????????????????????????????????????? | | ?????????????????????????????????????????????????? | | ?????????????????????????????????????????????????? | | ?????????????????????????????????????????????????? | | ?????????????????????????????????????????????????? | | ?????????????????????????????????????????????????? | | ?????????????????????????????????????????????????? | | ?????????????????????????????????????????????????? | | ?????????????????????????????????????????????????? | | ?????????????????????????????????????????????????? | | ?????????????????????????????????????????????????? | | ?????????????????????????????????????????????????? | | ?????????????????????????????????????????????????? | | ?????????????????????????????????????????????????? | | ?????????????????????????????????????????????????? | | ?????????????????????????????????????????????????? | | ?????????????????????????????????????????????????? | | ?????????????????????????????????????????????????? | | ?????????????????????????????????????????????????? | | ?????????????????????????????????????????????????? | | ???????????????????##########????????????????????? | | ???????????????????# @ ##???###?????????????? | | ????????????????#### """" #? ???????????? | | ????????????????#""" ^ """" ## #?????????? | | ????????????????#"R """" ## #?????????? | | ????????????????#""" """" ## """ """ #????###??? | | ????????????????# "" Y ## """ """ ######T##?? | | ????????????????#### ## """ """ ##! ! #?? | | ???????????????????# #? ?#!!! #?? | | ???????????????????# #??? ???#####! #?# | | ???????????????????#+###+#########+###########+### | | ???????????????????# =% | | ???????????????????+ * | | ???????????????????# | | ???????????????????###+#+################+##"##### | | ????????????????????????????????????# # | | ????????????????????????????????????# # | | ????????????????????????????????????# !!! # | | ???????????????????????????????????# !! ""T"" # | | ???????????????????????????????????## !! """"" # | | ????????????????????????????????????############## | | | | | | | | | | | +----------------------------------------------------+ Best States ------------- Heat Dissipation 34 Energy Generation 5 Energy Capacity 100 Matter Stores 238 Matter Capacity 300 Sight Range 16 Robot Scan Range 15 Terrain Scan Density 10 Armor Coverage 450 Evasion (%) 50 Item Schematics ----------------- None Robot Schematics ------------------ None Fabricated ------------ Nothing Alien Tech Used ----------------- None Achievements -------------- None Challenges ------------ None Game ------ Seed DeliverySystemLauncher Manual? 0 Play Time 00:07:30 Cumulative 15.1 hours Start 2024.08.08 @ 20:31:07 End 2024.08.08 @ 20:37:21 Sessions 1 Manual Loads 0 Difficulty Rogue Special Mode None Game No. 76 Rogue 76 Adventurer 0 Explorer 0 Win Type - Total 0 Types 0/0/0/0/0/0/0/0/0 Lore% 17 Gallery% 20 Achievement% 32 Wizard Run 0 Options --------- Layout 0 ASCII 0 Keyboard 0 Movement Arrows Keybinds 0 Fullscreen 2 Font 18/Terminus Map View 76x50 Zoom Use 0% Tactical HUD 1 Map Filters NONE Filters NONE Steam 1 RUN: 4560876e-700a-452e-b4a9-676552631950